{"text_format":"1","workbook":"xlsx","n_sheets":3,"sheets":["jjjj-mm-mm","jjjj-mm-mm (2)","Anleitung"],"not_rendered":{"charts":0,"images":0,"macros":1,"external_links":0,"defined_names":2,"comments":2,"pivot_tables":0},"unopened":[],"bounds":{"document_bytes":16777216,"sheet_cells":100000,"rows_first":2000,"rows_last":500,"rows_between":2000,"halvings":0,"cell_chars":16384,"cell_head_chars":4096},"cells_cut":0,"cells_raw":0,"read":"whole","date_system":"1900"}

{"sheet":"jjjj-mm-mm","index":0,"n_rows":31,"n_cols":7,"rows_kept":31,"cut":false,"hidden":false,"merged":[]}
["TSV Schleißheim",null,null,null,"Name:  ","Name1","name2"]
["Übungsleiter-Stundenabrechnung",null,null,null,"Straße:  "]
["Abrechungszeitraum",null,null,null,"PLZ/Ort:  ","85764 Oberschleissheim"]
[null,null,null,null,"Abteilung:  ","Turnen"]
["rot umrahmte Zellen nicht verändern!",null,null,null,"Vergütung pro Übungseinheit     €",9,"Standardverg."]
[]
["Datum","Uhrzeit",null,"Übungseinheiten","Übungsort/ Kurs","Vergütung","Betrag"]
[null,"von","bis","(á 45 Min.)"]
["2013-06-27","18:30:00","19:45:00",{"$f":"IF(A9<>\"\",(HOUR(C9-B9)*60+MINUTE(C9-B9))/45,\"\")","v":1.6666666666666667},"Musterhalle/ Muster-Kurs",{"$f":"IF(A9<>\"\",$F$5,\"\")","v":9},{"$f":"IF(A9<>\"\",F9*D9,\"\")","v":15}]
[null,null,null,{"$f":"IF(A10<>\"\",(HOUR(C10-B10)*60+MINUTE(C10-B10))/45,\"\")","v":""},null,{"$f":"IF(A10<>\"\",$F$5,\"\")","v":""},{"$f":"IF(A10<>\"\",F10*D10,\"\")","v":""}]
[null,null,null,"",null,"",""]
[null,null,null,"",null,"",""]
[null,null,null,"",null,"",""]
[null,null,null,"",null,"",""]
[null,null,null,"",null,"",""]
[null,null,null,"",null,"",""]
[null,null,null,"",null,"",""]
[null,null,null,"",null,"",""]
[null,null,null,"",null,"",""]
[null,null,null,"",null,"",""]
[null,null,null,"",null,"",""]
[null,null,null,"",null,"",""]
[null,null,null,"",null,"",""]
[null,null,null,"",null,"",""]
[null,null,null,"",null,"",""]
[null,null,null,"",null,"",""]
[null,null,null,"",null,"",""]
[null,null,null,"",null,"",""]
[null,null,null,"",null,"",""]
[null,null,null,"",null,"",""]
["Summe",null,null,{"$f":"IF(SUM(D9:D30)>0,SUM(D9:D30),\" \")","v":1.6666666666666667},null,null,{"$f":"IF(SUM(G9:G30)>0,SUM(G9:G30),\" \")","v":15}]

{"sheet":"jjjj-mm-mm (2)","index":1,"n_rows":31,"n_cols":7,"rows_kept":31,"cut":false,"hidden":false,"merged":[]}
["TSV Schleißheim",null,null,null,"Name:  ","Name1","name2"]
["Übungsleiter-Stundenabrechnung",null,null,null,"Straße:  "]
["Abrechungszeitraum",null,null,null,"PLZ/Ort:  ","85764 Oberschleissheim"]
[null,null,null,null,"Abteilung:  ","Turnen"]
["rot umrahmte Zellen nicht verändern!",null,null,null,"Vergütung pro Übungseinheit     €",9,"Standardverg."]
[]
["Datum","Uhrzeit",null,"Übungseinheiten","Übungsort/ Kurs","Vergütung","Betrag"]
[null,"von","bis","(á 45 Min.)"]
["2013-06-27","18:30:00","19:45:00",{"$f":"IF(A9<>\"\",(HOUR(C9-B9)*60+MINUTE(C9-B9))/45,\"\")","v":1.6666666666666667},"Musterhalle/ Muster-Kurs",{"$f":"IF(A9<>\"\",$F$5,\"\")","v":9},{"$f":"IF(A9<>\"\",F9*D9,\"\")","v":15}]
[null,null,null,{"$f":"IF(A10<>\"\",(HOUR(C10-B10)*60+MINUTE(C10-B10))/45,\"\")","v":""},null,{"$f":"IF(A10<>\"\",$F$5,\"\")","v":""},{"$f":"IF(A10<>\"\",F10*D10,\"\")","v":""}]
[null,null,null,"",null,"",""]
[null,null,null,"",null,"",""]
[null,null,null,"",null,"",""]
[null,null,null,"",null,"",""]
[null,null,null,"",null,"",""]
[null,null,null,"",null,"",""]
[null,null,null,"",null,"",""]
[null,null,null,"",null,"",""]
[null,null,null,"",null,"",""]
[null,null,null,"",null,"",""]
[null,null,null,"",null,"",""]
[null,null,null,"",null,"",""]
[null,null,null,"",null,"",""]
[null,null,null,"",null,"",""]
[null,null,null,"",null,"",""]
[null,null,null,"",null,"",""]
[null,null,null,"",null,"",""]
[null,null,null,"",null,"",""]
[null,null,null,"",null,"",""]
[null,null,null,"",null,{"$f":"IF(A30<>\"\",#REF!,\"\")","v":""},""]
["Summe",null,null,{"$f":"IF(SUM(D9:D30)>0,SUM(D9:D30),\" \")","v":1.6666666666666667},null,null,{"$f":"IF(SUM(G9:G30)>0,SUM(G9:G30),\" \")","v":15}]

{"sheet":"Anleitung","index":2,"n_rows":0,"n_cols":0,"rows_kept":0,"cut":false,"hidden":false,"merged":[]}